{"text_format":"1","workbook":"xlsx","n_sheets":2,"sheets":["VALOR LÍQUIDO","RPA"],"not_rendered":{"charts":0,"images":1,"macros":1,"external_links":1,"defined_names":5,"comments":0,"pivot_tables":0},"unopened":[],"bounds":{"document_bytes":16777216,"sheet_cells":100000,"rows_first":2000,"rows_last":500,"rows_between":2000,"halvings":0,"cell_chars":16384,"cell_head_chars":4096},"cells_cut":0,"cells_raw":0,"read":"whole","date_system":"1900"}

{"sheet":"VALOR LÍQUIDO","index":0,"n_rows":28,"n_cols":6,"rows_kept":28,"cut":false,"hidden":false,"merged":[[40,2,40,7],[33,2,33,7],[44,1,46,1],[44,2,46,2],[17,1,17,5],[25,1,25,5],[37,2,37,7],[1,1,1,5],[18,2,18,3],[3,1,3,4],[4,1,4,4],[36,2,36,7],[34,2,34,7]]}
[]
[null,"CÁLCULO RPA AUTÔNOMOS"]
[]
[null,"Já teve recolhimento de INSS este mês (teto 779,59)?",null,null,null,"Não"]
[null,"Sim - Qual Valor?",null,null,null,0]
[]
[]
[null,"Valor Líquido",0]
[null,"Valor Bruto",0]
[null,"INSS Empregado",{"$f":"F27","v":0}]
[null,"BC IRRF",{"$f":"C9-C10","v":0}]
[null,"IRRF (%)",{"$f":"IF(C11<=D20,E20,IF(C11<D21,E21,IF(C11<D22,E22,IF(C11<D23,E23,E24))))","v":0}]
[null,"IRRF",{"$f":"C11*C12","v":0}]
[null,"(-) Dedução",{"$f":"IF(C11<=D20,F20,IF(C11<D21,F21,IF(C11<D22,F22,IF(C11<D23,F23,F24))))","v":0}]
[null,"IRRF retido",{"$f":"C13-C14","v":0}]
[null,"Valor Líquido",{"$f":"C9-C15-C10","v":0}]
[]
[null,"Tabela IRRF"]
[null,null,"Valor",null,"Alíquota","Dedução"]
[null,"Até",0,1903.98,0,0]
[null,"De ",1903.99,2826.65,7.4999999999999997E-2,142.80000000000001]
[null,"De ",2826.6600000000003,3751.05,0.15,354.8]
[null,"De ",3751.0600000000004,4664.68,0.22500000000000001,636.13]
[null,"Acima",4664.6900000000005,999999.99,0.27500000000000002,869.36]
[]
[null,"Tabela INSS"]
[null,"Até",null,7087.22,0.11,{"$f":"IF(F4=\"sim\",IF((C9*E27)+F5<F28,C9*E27,F28-F5),IF(F4=\"Não\",IF(C9<=D27,C9*E27,F28),0))","v":0}]
[null,"Acima",null,{"$f":"D27+0.01","v":7087.2300000000005},"teto",779.59]

{"sheet":"RPA","index":1,"n_rows":56,"n_cols":8,"rows_kept":56,"cut":false,"hidden":false,"merged":[[14,3,14,7],[1,2,1,7],[3,2,3,7],[4,2,4,7],[7,3,8,6],[10,2,10,4],[10,5,10,7],[11,2,11,4],[11,5,11,7],[12,2,12,4],[12,5,12,7],[13,3,13,5],[28,3,28,4],[16,2,16,7],[17,2,18,7],[19,4,19,7],[21,2,21,4],[21,6,22,7],[22,3,22,4],[23,3,23,4],[24,3,24,4],[25,3,25,4],[26,3,26,4],[27,2,27,4],[29,3,29,4],[30,3,30,4],[31,3,31,4],[32,2,32,4],[32,6,33,7],[33,3,33,4],[34,3,34,4],[35,2,35,4],[36,2,36,4],[38,2,42,7],[43,6,44,7],[44,2,45,3],[44,4,45,4],[45,6,46,7],[46,2,46,3],[49,2,49,7],[51,2,51,3],[52,2,52,3],[53,2,53,3],[55,3,55,6]]}
[]
[null,null,"IMPORTANTE - ORIENTAÇÃO"]
[]
[null,null,"O VALOR LÍQUIDO DO SERVIÇO DEVE SER PREENCHIDO APENAS NA GUIA \"VALOR LÍQUIDO\""]
[null,null,"PREENCHER SOMENTE CÉLULAS EM AMARELO, IMPRIMIR E ASSINAR APÓS IMPRESSÃO"]
[]
[]
[null,null,null,"RECIBO DE PAGAMENTO A AUTÔNOMO - RPA",null,null,null,"Nº DO RECIBO"]
[]
[]
[null,null,"NOME OU RAZÃO SOCIAL DA EMPRESA",null,null,"CNPJ"]
[null,null,"Fundação Médica do Rio Grande do Sul",null,null,"94.391.901/0001-03"]
[null,null,"Este é um documento do sistema de gestão da qualidade Fundmed",null,null,"Nº: CONTPF 030/V3"]
[null,null,"Nome do Projeto:",null,null,null,"Número do Projeto:"]
[null,null,"Coordenador(A): "]
[]
[null,null,"Recebi da empresa acima identificada referente a:"]
[]
[]
[null,null,"O valor de:",{"$f":"H31","v":0},{"$f":"fExtenso(D20)","v":"zero"}]
[]
[null,null,"1. DADOS DE IDENTIFICAÇÃO DO PRESTADOR",null,null,null,"ESPECIFICAÇÃO"]
[null,null,"Nome Completo:",{"$f":"IF('VALOR LÍQUIDO'!$J$3=0,\"\",'VALOR LÍQUIDO'!$J$3)","v":""}]
[null,null,"Data de Nascimento:",null,null,null,"Valor Bruto do Serviço",{"$f":"H25","v":0}]
[null,null,"Nº PIS/PASEP:",null,null,null,"I. Valor Bruto do Serviço",{"$f":"'VALOR LÍQUIDO'!C9","v":0}]
[null,null,"Nº CPF:"]
[null,null,"Nº RG:",null,null,null,"Descontos",{"$f":"H28+H29","v":0}]
[null,null,"2. ENDEREÇO RESIDENCIAL",null,null,null,"II .Imposto de Renda",{"$f":"'VALOR LÍQUIDO'!C15","v":0}]
[null,null,"RUA/AVENIDA:",null,null,null,"III. INSS (PESSOA FÍSICA)",{"$f":"'VALOR LÍQUIDO'!C10","v":0}]
[null,null,"BAIRRO:"]
[null,null,"CIDADE/UF:",null,null,null,"Valor Líquido",{"$f":"H24-H27","v":0}]
[null,null,"CEP:"]
[null,null,"3. CONTATO",null,null,null,"5. DADOS BANCÁRIOS - CONTA CORRENTE DE TITULARIDADE DO PRESTADOR "]
[null,null,"TELEFONE:"]
[null,null,"E-MAIL:",null,null,null,"BANCO:"]
[null,null,"4. VOCÊ POSSUÍ VÍNCULO EM QUAL INSTITUIÇÃO PÚBLICA?",null,null,null,"AGÊNCIA:"]
[null,null,null,null,null,null,"CONTA CORRENTE:"]
[]
[null,null,"Ao assinar este documento, o prestador DECLARA ter ciência de que a soma do valor percebido como remuneração, retribuições e bolsas, em qualquer hipótese, incluindo, entre outros, bolsas de ensino, pesquisa, extensão e de estímulo à inovação, salário de Professor(a), servidor(a) e aposentadoria do INSS não poderá exceder o limite do maior valor recebido pelo funcionalismo público federal, nos termos do inciso XI do artigo 37 da Constituição da República Federativa do Brasil, pelo que assume inteira responsabilidade, comprometendo-se a comprovar os termos, se necessário, de forma documental em eventual questionamento ou fiscalização pelos órgãos de controle a que essa entidade fundacional e suas entidades apoiadas estejam submetidas."]
[]
[]
[]
[]
[null,null,null,null,null,null,"ASSINATURA DO PRESTADOR:"]
[null,null,"LOCALIDADE",null,"DATA"]
[]
[null,null,"PORTO ALEGRE",null,{"$f":"TODAY()","v":"2022-09-30"}]
[]
[]
[null,null,"AUTORIZAÇÃO DO COORDENADOR(A) DO PROJETO"]
[]
[null,null,"VALOR BRUTO:",null,{"$f":"H24","v":0}]
[null,null,"INSS COTA PATRONAL:",null,{"$f":"0.2*H24","v":0}]
[null,null,"VALOR TOTAL AUTORIZADO:",null,{"$f":"E52+E53","v":0}]
[]
[null,null,null,{"$f":"D15","v":0}]